[Event "Ramat Gan Masters-A Winter 2023"]
[Site "Ramat Gan/ISR"]
[Date "2023.02.13"]
[Round "3.2"]
[White "Duchan, Yoav"]
[Black "Gavriely, Or"]
[Result "0-1"]
[Annotator "TA"]
[ECO "B11"]
[WhiteElo "1945"]
[BlackElo "1991"]
[PlyCount "144"]
[EventDate "2023.01.17"]
[EventType "swiss"]
[SourceTitle "playchess.com"]
[Source "ChessBase"]
[SourceQuality "1"]
[TimeControl "5400+30"]

{[%evp 10,144,20,20,28,27,24,0,37,37,37,38,38,34,44,37,51,54,46,49,64,37,72,58,55,20,20,13,18,7,18,14,25,24,16,0,0,-18,-20,-22,-22,-63,-63,-63,-42,-53,-28,-44,-29,-25,-32,-96,-55,-55,-56,-121,-47,-44,-43,-75,-42,-42,-42,-75,-42,-43,-43,-73,0,-72,-71,-105,-60,-60,-55,-57,-42,-59,-35,-79,-73,-101,-108,-172,-174,-165,-150,-151,-140,-381,-308,-315,-297,-282,-277,-347,-320,-273,0,-233,-204,-703,-137,-137,-137,-139,-146,-136,-89,-89,-89,-89,-89,-6576,-6357,-2652,-2388,-29968,-29969,-29967,-29969,-29977,-29978,-29978,-29979,-29979,-29980,-29980,-29981,-29981,-29982,-29982,-29983,-29983,-29984,-29984,-29983]} 1. e4 {[%emt 0:00:01]} c6 {[%emt 0:00:07]} 2. Nc3 {[%emt 0:00:02]} d5 {[%emt 0:00:07]} 3. Nf3 {[%emt 0:00:02]} dxe4 {[%emt 0:00:06]} 4. Nxe4 {[%emt 0:00:05]} Nf6 {[%emt 0:00:03]} 5. Qe2 {[%emt 0:00:04]} Nxe4 6. Qxe4 {[%emt 0:00:02]} Qd5 {[%emt 0:00:19] Dodges Bc4. B11: Caro-Kann: Two Knights Variation.} 7. Qf4 {[%emt 0:00:30]} Qf5 {[%emt 0:00:02]} 8. Qe3 {[%emt 0:00:08]} Qe6 {[%emt 0:00:01] The position is equal.} 9. d4 {[%emt 0:00:10]} Qxe3+ {[%emt 0:00:06]} 10. Bxe3 {[%emt 0:00:11]} Bf5 {[%emt 0:00:07] Black is weak on the dark squares} 11. O-O-O {[%emt 0:00:23]} e6 {[%emt 0:00:58]} 12. Nh4 {[%emt 0:02:12] [#]} Bg6 $146 {[%emt 0:02:47]} ({Predecessor:} 12... Be4 13. f3 Bg6 14. c4 Bd6 15. d5 cxd5 16. cxd5 e5 17. Nxg6 hxg6 18. h4 Nd7 {½-½ Shyam,S (2509)-Bernadskiy,V (2547) Montebelluna Cup 2nd 2018 (7)}) 13. Nxg6 {[%emt 0:00:44]} hxg6 {[%emt 0:00:02]} 14. Be2 {[%emt 0:01:17]} Bd6 {[%emt 0:01:05]} 15. Rd3 {[%emt 0:05:08]} Kd7 {[%emt 0:08:30][%cal Ob8a6]} 16. c4 {[%emt 0:02:06]} a5 {[%emt 0:04:55]} 17. d5 {[%emt 0:07:01]} exd5 {[%emt 0:06:39]} 18. cxd5 {[%emt 0:00:28]} c5 {[%emt 0:01:57]} 19. Rc3 {[%emt 0:05:30]} b6 {[%emt 0:00:54]} 20. h4 {[%emt 0:07:57]} Na6 {[%emt 0:02:21][%cal Bb8a6,Ba6b4,Bb4d5,Bd5e3][%mdl 32]} 21. Bb5+ {[%emt 0:02:35]} Kc7 {[%emt 0:00:30]} 22. a3 {[%emt 0:06:54] Repels Nb4} Nb4 {[%emt 0:19:50]} 23. Kb1 {[%emt 0:10:57] Dodges Na2} (23. axb4 $2 {is the wrong capture.} axb4 24. Kd2 bxc3+ 25. bxc3 Be5 $19) (23. Bc4 $5) 23... Nxd5 {[%emt 0:04:48]} 24. Rd3 {[%emt 0:00:17]} Nxe3 {[%emt 0:00:15]} 25. fxe3 {[%emt 0:00:07]} Rad8 {[%emt 0:08:04]} 26. g4 {[%emt 0:15:10]} f6 {[%emt 0:07:55]} 27. Kc2 {[%emt 0:05:57]} Rhf8 {[%emt 0:00:48]} 28. Rhd1 {[%emt 0:02:43]} Rf7 {[%emt 0:03:12]} 29. b3 {[%emt 0:02:33]} Re7 {[%emt 0:00:55]} 30. h5 {[%emt 0:08:21]} (30. a4 $15) 30... Re5 {[%emt 0:07:38]} 31. hxg6 {[%emt 0:01:26]} Rg5 $1 {[%emt 0:00:16][%csl LRg4,LRg6]} 32. Rd5 {[%emt 0:04:21]} ({White should play} 32. Rg1 $15) 32... Rxg6 {[%emt 0:01:36]} (32... Rxg4 $17 33. Bd3 Rg3) 33. Be2 $15 {[%emt 0:03:24]} Rh6 {[%emt 0:00:04]} 34. Rh5 {[%emt 0:01:11]} Rhh8 {[%emt 0:00:53]} 35. a4 {[%emt 0:01:28]} Rhe8 {[%emt 0:02:29]} 36. Rd3 {[%emt 0:00:01]} Re6 {[%emt 0:02:12]} (36... c4 $5 37. bxc4 Re4 $15) 37. Bf3 {[%emt 0:02:27]} Rde8 {[%emt 0:00:46]} 38. Rhd5 {[%emt 0:00:58]} Rd8 {[%emt 0:01:42]} (38... g5 $17) 39. Kd2 {[%emt 0:00:54]} (39. Rh5 $1 $11) 39... g6 $36 {[%emt 0:00:31][%mdl 2048] Black is really pushing.} 40. e4 {[%emt 0:03:45]} Ree8 {[%emt 0:01:40]} 41. Kc3 {[%emt 0:00:29]} Be5+ {[%emt 0:06:46]} 42. Kc4 {[%emt 0:01:31]} Bd4 43. Rxd8 {[%emt 0:00:00]} Rxd8 $15 {[%emt 0:00:02][%mdl 4096] Endgame KRB-KRB} 44. Rd1 {[%emt 0:00:00][%cal Oe4e5]} Kd6 {[%emt 0:01:30]} 45. Rh1 {[%emt 0:00:55]} Ke5 {[%emt 0:00:05]} 46. Kd3 {[%emt 0:00:01] Repels Be3+} (46. Kb5 $17) 46... Kf4 $19 {[%emt 0:00:54]} 47. Rf1 {[%emt 0:00:27]} Rh8 {[%emt 0:00:32] And now ...Rh3 would win.} 48. Be2+ {[%emt 0:00:34]} Ke5 {[%emt 0:00:23] Black is more active.} 49. g5 $2 {[%emt 0:01:00]} (49. Rf3 $17 {was necessary.}) 49... Rh3+ {[%emt 0:00:17]} 50. Kd2 {[%emt 0:00:29]} Be3+ {[%emt 0:00:23]} ({Weaker is} 50... Kxe4 51. gxf6 Rxb3 52. f7 $11) 51. Kc2 {[%emt 0:00:00]} Bxg5 {[%emt 0:00:29]} 52. Rd1 {[%emt 0:00:25]} Rh2 {[%emt 0:00:27]} (52... Kxe4 53. Bd3+ Rxd3 54. Rxd3 $19) 53. Kd3 {[%emt 0:00:01]} Rh3+ $2 {[%emt 0:03:00]} (53... Bf4 $19 {Threatens to win with ...g5.} 54. Bg4 Rg2) 54. Kc4 $2 {[%emt 0:00:43]} (54. Kc2 $1 $11 {and White has nothing to worry.} Be3 55. Rf1) 54... Kxe4 {[%emt 0:03:54]} 55. Bd3+ $2 {[%emt 0:00:00] [#]} (55. Re1) 55... Ke5 $2 {[%emt 0:00:28]} (55... Rxd3 $1 $19 {has better winning chances.} 56. Rxd3 Bf4) 56. Bxg6 $17 {[%emt 0:00:41]} Rh4+ {[%emt 0:00:01]} 57. Kc3 {[%emt 0:00:15]} f5 {[%emt 0:00:48]} 58. Bf7 {[%emt 0:00:24]} Rd4 {[%emt 0:01:09]} (58... Be3 $142 59. Rd8 Kf6) 59. Rxd4 {[%emt 0:00:43]} cxd4+ {[%emt 0:00:01] KB-KB} 60. Kd3 {[%emt 0:00:00]} Be3 {[%emt 0:00:26] Hoping for ...Kf4.} 61. Bh5 $2 {[%emt 0:00:27][%mdl 8192] [#]} (61. Ke2 $17) 61... Kf4 $1 $19 {[%emt 0:00:24]} 62. Ke2 {[%emt 0:00:18]} Kg3 {[%emt 0:00:01] ( -> ...f4)} 63. Bg6 {[%emt 0:00:48]} f4 {[%emt 0:00:10][%cal Bf5f4,Bf4f3,Bf3f2][%mdl 32] Black mates.} 64. Be4 {[%emt 0:00:51]} Bf2 {[%emt 0:00:10]} 65. Kf1 {[%emt 0:01:23]} f3 {[%emt 0:00:18]} 66. Bh7 {[%emt 0:00:53]} Be3 {[%emt 0:00:16]} 67. Bg6 {[%emt 0:00:31]} Bg5 {[%emt 0:00:09]} 68. Ke1 {[%emt 0:00:37]} f2+ {[%emt 0:00:12]} 69. Kf1 {[%emt 0:00:18]} Kf3 {[%emt 0:00:01]} 70. Bf5 {[%emt 0:00:23]} Ke3 {[%emt 0:00:01]} 71. Bg4 {[%emt 0:00:01]} Bh4 {[%emt 0:00:14]} 72. Bd7 {[%emt 0:00:19]} Kd2 {[%emt 0:00:19] Weighted Error Value: White=0.37/Black=0.28 (precise)} 0-1

[Event "Ramat Gan Masters-A Winter 2023"]
[Site "Ramat Gan/ISR"]
[Date "2023.02.13"]
[Round "3.3"]
[White "Aroeta, Benny"]
[Black "Meirovich, Ilay"]
[Result "1-0"]
[Annotator "TA"]
[ECO "B22"]
[WhiteElo "1978"]
[BlackElo "1979"]
[PlyCount "103"]
[EventDate "2023.01.17"]
[EventType "swiss"]
[SourceTitle "playchess.com"]
[Source "ChessBase"]
[SourceQuality "1"]
[TimeControl "5400+30"]

{[%evp 9,103,22,43,36,143,145,166,113,148,148,133,129,116,112,139,139,170,116,115,115,120,122,237,254,334,319,351,366,448,454,473,494,481,486,999,745,725,665,547,415,406,392,384,410,386,349,339,329,440,344,644,644,664,652,662,633,648,638,634,614,652,645,1005,996,906,889,889,856,1238,1095,1707,1545,29970,29971,29970,29969,29972,29973,29973,29970,29966,0,29972,29973,29973,29973,29975,29976,29976,29977,29977,29978,29978,29978,29976,11335]} 1. e4 {[%emt 0:23:23]} c5 {[%emt 0:00:13]} 2. Nf3 {[%emt 0:00:13]} Nc6 {[%emt 0:00:05]} 3. c3 {[%emt 0:00:32]} d5 {[%emt 0:00:04]} 4. exd5 {[%emt 0:00:05]} Qxd5 {[%emt 0:00:05]} 5. d4 {[%emt 0:00:04]} g6 {[%emt 0:00:04]} (5... Nf6 {simplifies} 6. Be2 e6 7. O-O cxd4 8. cxd4 Be7) 6. Na3 {[%emt 0:01:47] B22: Sicilian: 2 c3.} cxd4 {[%emt 0:06:26]} ({Black should try} 6... Bg4 $1 $14) 7. Nb5 $1 $16 {[%emt 0:01:55] Black must now prevent Nc7+.} Kd8 {[%emt 0:15:41] [#] Wards off Nc7} 8. Be3 $146 {[%emt 0:30:04]} ({Don't play} 8. Nbxd4 $6 Nxd4 9. Nxd4 (9. Qxd4 Qxd4 10. Nxd4 e5 $14) 9... Bd7 $16) (8. Nfxd4 $18 {Hoping for Be3.} Bd7 9. Be3) ({Predecessor:} 8. Nbxd4 Nxd4 9. cxd4 Bg7 10. Be2 Nf6 11. O-O Bd7 12. Ne5 Ne4 13. Bc4 {1-0 Tregubov,P (2423)-Padmini,R (2196) Lindores Abbey Blitz Tal Memorial 2021 (14.45)}) 8... Nf6 {[%emt 0:13:13]} 9. Nbxd4 {[%emt 0:04:18]} ({But not} 9. Bxd4 $6 Nxd4 10. Nbxd4 (10. Qxd4 Qxd4 11. Nbxd4 e6 $14) 10... Bd7 $14) 9... Bd7 {[%emt 0:09:50]} 10. Nxc6+ {[%emt 0:05:39]} Bxc6 {[%emt 0:01:27]} 11. Ne5 {[%emt 0:00:21]} Ke8 {[%emt 0:04:01]} 12. Nxc6 {[%emt 0:00:25]} Qxc6 {[%emt 0:02:02] [#]} 13. Qb3 {[%emt 0:02:56]} (13. Be2 $1 $18 {[%cal Re2f3]}) 13... a6 {[%emt 0:00:20]} 14. Bc4 $36 {[%emt 0:01:42][%cal Bf1c4,Bc4e2,Be2f3][%mdl 2080] White has strong initiative.} e6 {[%emt 0:01:07]} 15. O-O {[%emt 0:00:45]} b5 {[%emt 0:03:54]} (15... Ne4 $16) 16. Be2 $18 {[%emt 0:00:49]} Nd5 {[%emt 0:01:02]} 17. Bd4 {[%emt 0:04:34]} Rg8 {[%emt 0:01:36] [#]} 18. a4 $1 {[%emt 0:00:55][%cal Ra4b5]} Rb8 {[%emt 0:01:14]} (18... Nf4 $2 19. Bf3 (19. axb5 $2 Qxg2#) 19... Qc4 20. Qxc4 bxc4 21. Bxa8 $18) 19. axb5 {[%emt 0:04:33]} axb5 {[%emt 0:01:07]} 20. c4 {[%emt 0:00:27]} Nf4 {[%emt 0:00:11][%csl Gf4][%cal Rc6g2]} 21. Bf3 {[%emt 0:00:14]} Qd6 {[%emt 0:03:39]} (21... Qxc4 $142 22. Qxc4 bxc4) 22. Ba7 {[%emt 0:01:04] A strong pair of Bishops.} Rc8 {[%emt 0:00:36]} 23. Rfd1 {[%emt 0:02:03]} Qb4 {[%emt 0:00:01]} 24. Qxb4 {[%emt 0:01:01]} Bxb4 {[%emt 0:00:02]} 25. g3 {[%emt 0:01:08]} Nh3+ {[%emt 0:00:25]} 26. Kg2 {[%emt 0:00:24] Black is weak on the light squares} Ng5 {[%emt 0:00:02]} 27. cxb5 {[%emt 0:00:46]} Nxf3 {[%emt 0:00:05]} 28. Kxf3 {[%emt 0:00:07]} Ke7 {[%emt 0:01:15]} 29. b6 {[%emt 0:00:25]} Rc2 $2 {[%emt 0:00:23]} (29... Rc5 30. b7 Rb5) 30. b7 {[%emt 0:00:51]} Bd6 {[%emt 0:00:06] [#]} 31. Rxd6 $1 {[%emt 0:00:26][%mdl 576] Promotion} Kxd6 {[%emt 0:00:03]} 32. b8=Q+ {[%emt 0:00:07]} Rxb8 {[%emt 0:00:06]} 33. Bxb8+ {[%emt 0:00:05][%mdl 4096] Endgame KRB-KR} Kd5 {[%emt 0:00:13]} 34. Ra5+ {[%emt 0:00:05]} Kc4 {[%emt 0:00:40]} 35. Be5 {[%emt 0:00:06]} f5 {[%emt 0:00:51]} 36. Ra7 {[%emt 0:00:35] Rc7+ would be deadly.} Kd5 {[%emt 0:00:09]} 37. Bc3 {[%emt 0:00:11]} g5 {[%emt 0:00:42]} 38. Rxh7 {[%emt 0:00:34]} e5 {[%emt 0:00:02]} 39. Re7 {[%emt 0:01:57]} e4+ {[%emt 0:00:04]} 40. Ke3 {[%emt 0:00:56]} f4+ {[%emt 0:00:14]} 41. gxf4 {[%emt 0:00:08]} gxf4+ {[%emt 0:00:06]} 42. Kxf4 {[%emt 0:00:09]} Rxf2+ {[%emt 0:00:02]} 43. Kg3 {[%emt 0:00:13]} Rf3+ {[%emt 0:00:12]} 44. Kg2 {[%emt 0:00:02]} Rf4 {[%emt 0:00:16]} 45. Kg3 {[%emt 0:00:47]} Rf3+ {[%emt 0:00:06]} 46. Kg4 {[%emt 0:00:06] White mates.} Rf2 {[%emt 0:00:13]} 47. Re5+ {[%emt 0:01:05]} Kc6 {[%emt 0:00:10]} 48. h4 {[%emt 0:00:20][%cal Bh2h4,Bh4h5][%mdl 32]} Rg2+ {[%emt 0:00:13]} 49. Kf4 {[%emt 0:00:49]} Rh2 {[%emt 0:00:07]} 50. h5 {[%emt 0:00:37]} Rh3 {[%emt 0:00:16]} 51. Kxe4 {[%emt 0:01:27]} Kd6 {[%emt 0:00:06]} 52. Rf5 {[%emt 0:00:48] Weighted Error Value: White=0.13 (very precise) /Black=0.46} (52. Kf4 $142 Kc6 53. Kg5 Rh2 54. h6 Rg2+ 55. Kh5 Rh2+ 56. Kg6 Kc7 57. h7) 1-0

[Event "Ramat Gan Masters-A Winter 2023"]
[Site "Ramat Gan/ISR"]
[Date "2023.02.13"]
[Round "3.4"]
[White "Noy, Eyal"]
[Black "Kochavi, Dana"]
[Result "1-0"]
[Annotator "TA"]
[ECO "E16"]
[WhiteElo "2117"]
[BlackElo "1956"]
[PlyCount "77"]
[EventDate "2023.01.17"]
[EventType "swiss"]
[SourceTitle "playchess.com"]
[Source "ChessBase"]
[SourceQuality "1"]
[TimeControl "5400+30"]

{[%evp 12,77,22,-7,8,0,6,0,1,-31,-43,-43,-48,-42,-27,-28,-18,-76,-75,-97,-63,-49,33,21,34,-10,-18,-18,0,0,64,66,98,98,91,98,419,416,482,458,397,362,527,316,311,325,686,672,647,656,756,749,741,737,1416,1050,29990,29991,29991,4714,29991,29975,29989,29976,29990,29977,29970,29955]} 1. g3 {[%emt 0:29:10]} Nf6 {[%emt 0:00:08]} 2. c4 {[%emt 0:00:52]} e6 {[%emt 0:06:36]} 3. Bg2 {[%emt 0:01:10]} d5 {[%emt 0:00:08]} 4. Nf3 {[%emt 0:01:17]} b6 {[%emt 0:07:05]} 5. O-O {[%emt 0:01:20]} Bb7 {[%emt 0:00:10]} 6. d4 {[%emt 0:01:30]} Nbd7 {[%emt 0:00:12] 6...dxc4 is setting a new trend.} 7. Nc3 {[%emt 0:03:14]} dxc4 {[%emt 0:04:31] [#] E16: Queen's Indian: 4 g3 Bb7 5 Bg2 Bb4+.} 8. Nd2 $146 {[%emt 0:11:37][%csl LRb7,LRc4]} ({Predecessor:} 8. Qa4 a6 9. Qxc4 b5 10. Qd3 c5 11. dxc5 Bxc5 12. Rd1 Qb6 13. e3 O-O 14. a3 Rfd8 15. b4 Be7 16. Qe2 Rac8 17. Bb2 Qa7 18. Rac1 Qa8 {0-1 Avramidou,A (2238)-Gorodetzky,D (2495) Titled Tuesday intern op 02nd Feb blitz 2021 (2)}) 8... Bxg2 {[%emt 0:00:13]} 9. Kxg2 {[%emt 0:00:03]} a6 {[%emt 0:04:20] The position is equal.} 10. e4 {[%emt 0:03:51]} b5 {[%emt 0:01:35]} 11. e5 {[%emt 0:03:05]} Nd5 {[%emt 0:00:09]} 12. Nxd5 {[%emt 0:02:30]} exd5 {[%emt 0:00:07]} 13. Qg4 {[%emt 0:00:41]} h5 {[%emt 1:11:46]} 14. Qh3 {[%emt 0:01:29]} (14. Qe2 $1 $11) 14... Be7 $17 {[%emt 0:00:00]} 15. f4 {[%emt 0:07:20]} Nf8 {[%emt 0:00:00]} 16. f5 {[%emt 0:02:21]} Qd7 {[%emt 0:00:00]} (16... g6 $15) 17. Nf3 $14 {[%emt 0:01:00][%cal Oe5e6][%mdl 1024] White has compensation.} f6 {[%emt 0:00:00]} 18. Re1 {[%emt 0:08:02]} O-O-O {[%emt 0:00:00]} 19. e6 {[%emt 0:00:31][%cal Be5e6,Be6e7][%mdl 32]} Qc6 {[%emt 0:00:00]} 20. g4 {[%emt 0:01:30]} g6 {[%emt 0:00:00]} (20... c3 $11 21. bxc3 hxg4 22. Qxg4 (22. Qxh8 $2 gxf3+ 23. Kg1 Qxc3 $17) 22... g6) 21. g5 $1 {[%emt 0:00:52] [#] And now gxf6 would win.} Re8 {[%emt 0:00:00]} 22. gxf6 {[%emt 0:18:05] White is more active.} Bxf6 {[%emt 0:00:00]} 23. e7 $1 {[%emt 0:00:00]} Nd7 {[%emt 0:00:00][%mdl 8192] [#] A mistake that costs the game.} (23... Rxe7 $2 24. Rxe7 (24. fxg6+ $2 Kb7 $19) 24... Bxe7 25. f6+ (25. fxg6+ $2 Kb7 $19) 25... Qe6 26. fxe7 Qxh3+ 27. Kxh3 $18) (23... Kb7 $16) 24. Re6 $1 $18 {[%emt 0:00:00]} ({Stronger than} 24. fxg6 Rxe7 25. Rxe7 Bxe7 $11) 24... Qb7 {[%emt 0:00:00]} 25. fxg6 {[%emt 0:00:00]} Kb8 {[%emt 0:00:00]} 26. Qf5 {[%emt 0:00:00]} ({But not} 26. Bg5 Bg7 27. Qf5 Rhg8 $18) 26... Bxe7 {[%emt 0:00:00]} (26... Bg7 {was necessary.} 27. Bd2 h4) 27. Qf7 {[%emt 0:00:00]} Qc8 {[%emt 0:00:00][%cal Oe7f6] Hoping for ...Bf6!} 28. g7 {[%emt 0:00:00] Prevents Bf6.} ({Don't play} 28. Rxe7 Rxe7 29. Qxe7 Re8) 28... Rhg8 {[%emt 0:00:00]} (28... Rh7 29. Rg6 Rxg7 30. Rxg7 Bf6) 29. Rxe7 {[%emt 0:00:00]} Rxe7 {[%emt 0:00:00]} 30. Qxe7 {[%emt 0:00:00]} Nf8 {[%emt 0:00:00]} 31. Kf2 {[%emt 0:00:00]} Ne6 {[%emt 0:00:00]} 32. Bh6 {[%emt 0:00:00]} c5 {[%emt 0:00:00]} 33. Re1 {[%emt 0:00:00]} Nxd4 {[%emt 0:00:00]} 34. Nxd4 {[%emt 0:00:00]} cxd4 {[%emt 0:00:00]} 35. Qf8 {[%emt 0:00:00]} (35. Qf7 $142 d3 36. Bf4+ Ka8 37. Qxd5+ Ka7 38. Re7+ Kb6 39. Qd6+ Ka5 40. Qa3+ Kb6 41. Be3+ Qc5 42. Qxc5+ Ka5 43. Qa3#) 35... c3 {[%emt 0:00:00]} 36. bxc3 {[%emt 0:00:00] White mates.} dxc3 {[%emt 0:00:00]} 37. Re7 {[%emt 0:00:00]} c2 {[%emt 0:00:00]} 38. Qxc8+ {[%emt 0:00:00]} Kxc8 {[%emt 0:00:00]} 39. Rf7 {[%emt 0:00:00] A cool game by Noy.   Weighted Error Value: White=0.18 (very precise) /Black=0.88} 1-0

[Event "Ramat Gan Masters-A Winter 2023"]
[Site "Ramat Gan/ISR"]
[Date "2023.02.13"]
[Round "3.5"]
[White "Chernomordik, Pavel"]
[Black "Soybert, Ori"]
[Result "1-0"]
[Annotator "TA"]
[ECO "B22"]
[WhiteElo "2198"]
[BlackElo "1736"]
[PlyCount "41"]
[EventDate "2023.01.17"]
[EventType "swiss"]
[SourceTitle "playchess.com"]
[Source "ChessBase"]
[SourceQuality "1"]
[TimeControl "5400+30"]

{[%evp 9,41,37,43,10,9,0,6,6,1,0,-3,-7,-11,-33,21,16,16,12,14,12,192,224,178,187,400,385,687,666,658,657,685,579,716,712]} 1. e4 {[%emt 0:00:03]} c5 {[%emt 0:00:03]} 2. Nf3 {[%emt 0:00:33]} Nc6 {[%emt 0:00:03]} 3. Bb5 {[%emt 0:00:05]} e5 {[%emt 0:00:08]} 4. c3 {[%emt 0:00:35]} Bd6 {[%emt 0:01:45]} 5. O-O {[%emt 0:00:47]} a6 {[%emt 0:00:06]} 6. Bxc6 {[%emt 0:02:58] B22: Sicilian: 2 c3.} dxc6 {[%emt 0:00:07]} 7. d4 {[%emt 0:00:07]} exd4 {[%emt 0:00:34]} 8. cxd4 {[%emt 0:00:07] The position is equal.} Bg4 {[%emt 0:00:07]} 9. dxc5 {[%emt 0:01:29]} Bxc5 {[%emt 0:02:01]} 10. Qb3 {[%emt 0:00:12]} Qb6 {[%emt 0:11:28]} 11. Qc3 {[%emt 0:02:01]} (11. Nbd2 $5 {[%cal Rf3e5]}) 11... Bxf3 {[%emt 0:39:26]} (11... Nf6 $15) 12. Qxf3 $11 {[%emt 0:00:38] [#]} Nf6 $146 {[%emt 0:05:55]} ({Predecessor:} 12... Ne7 13. Nd2 Ng6 14. Nb3 Bd6 15. Be3 Qc7 16. g3 O-O 17. Rad1 Rad8 18. Qh5 Rfe8 {½-½ Blagojevic,T (2260)-Barp,A (2388) EU-ch 22nd Terme Catez 2022 (8)}) 13. Nd2 {[%emt 0:01:49]} O-O {[%emt 0:00:49]} 14. Nc4 {[%emt 0:01:04]} Qb4 {[%emt 0:02:39] [#] Black cannot hold the game after this.} (14... Qd8 $11 {and Black is okay.}) 15. b3 $1 $18 {[%emt 0:01:27]} a5 {[%emt 0:13:36]} 16. Bb2 {[%emt 0:04:21][%cal Bc1b2,Bb2d4,Bd4c3][%mdl 32] a4 is the strong threat.} Ne8 $2 {[%emt 0:02:58]} (16... a4 {keeps fighting.}) 17. a4 {[%emt 0:01:06] Threatens to win with Ba3.} Bd4 $2 {[%emt 0:09:24]} (17... b5) 18. Bxd4 {[%emt 0:03:48] White is clearly winning.} b5 {[%emt 0:00:51]} 19. axb5 {[%emt 0:01:39]} cxb5 {[%emt 0:01:07]} 20. Bc3 {[%emt 0:04:14]} Qxb3 {[%emt 0:00:17]} 21. Nxa5 {[%emt 0:00:18] Weighted Error Value: White=0.14 (very precise) /Black=0.66} ({Not} 21. Rxa5 Rc8 $16 {[%mdl 64] Pin}) 1-0